fUSD/lending_fUSD_20260205
["ID","MTS","AMOUNT","RATE_DAILY","PERIOD"]
[404532216,1770255045144,-500.0,0.00017973,2]
[404532217,1770255045154,-502.60259166,0.00017982,2]
[404532218,1770255045163,-20956.17971618,0.0001799,3]
[404532219,1770255045173,-115847.37602758,0.0001799,2]
[404532220,1770255045182,-920.16610972,0.0001799,2]
[404532221,1770255045191,-328999.5138634,0.00017995,2]
[404532222,1770255045200,-89789.6355067,0.00017995,2]
[404532223,1770255045209,-150.0,0.00017999,2]
[404532224,1770255045218,-150.0,0.00017999,2]
[404532225,1770255045227,-150.0,0.00017999,2]
[404532226,1770255045236,-150.0,0.00017999,2]
[404532227,1770255045246,-150.0,0.00017999,2]
[404532228,1770255045255,-208.01281387,0.00017999,2]
[404532229,1770255045264,-202.144,0.00017999,2]
[404532230,1770255045273,-1013.72655464,0.00017999,5]
[404532231,1770255045283,-1013.72655464,0.00017999,5]
[404532232,1770255045292,-1013.72655464,0.00017999,5]
[404532233,1770255045301,-300.0,0.00017999,2]
[404532234,1770255045310,-300.0,0.00017999,2]
[404532235,1770255045319,-300.0,0.00017999,2]
[404532236,1770255045328,-300.0,0.00017999,2]
[404532237,1770255045337,-666.0,0.00017999,2]
[404532238,1770255045346,-11641.82188566,0.00017999,2]
[404532239,1770255045355,-300.0,0.00017999,2]
[404532240,1770255045364,-500.0,0.00017999,2]
[404532241,1770255045373,-173.07302664,0.00017999,2]
[404532242,1770255045386,-666.0,0.00017999,2]
[404532243,1770255045396,-500.0,0.00017999,2]
[404532244,1770255045405,-500.0,0.00017999,2]
[404532245,1770255045414,-500.0,0.00017999,2]
[404532246,1770255045423,-500.0,0.00017999,2]
[404532247,1770255045432,-500.0,0.00017999,2]
[404532248,1770255045441,-500.0,0.00017999,2]
[404532249,1770255045450,-500.0,0.00017999,2]
[404532250,1770255045458,-500.0,0.00017999,2]
[404532251,1770255045467,-500.0,0.00017999,2]
[404532252,1770255045476,-595.90897736,0.00017999,2]
[404532253,1770255045485,-1189060.04207937,0.00018,2]
[404532254,1770255045688,-432.21802615,0.00018,2]
[404532255,1770255045699,-8323.3767327,0.00018,2]
[404532256,1770255045710,-894.11,0.00018,2]
[404532259,1770255045720,-1163.69555954,0.00018,2]
[404532261,1770255045731,-2276.6550879,0.00018,2]
[404532262,1770255045741,-15794.45739886,0.00018,2]
[404532263,1770255045752,-11480.75804952,0.00018,2]
[404532264,1770255045763,-6135.44242119,0.00018,2]
[404532265,1770255045796,-676.0,0.00013982,2]
[404532266,1770255045805,-747.6501722,0.00018,2]
[404532267,1770255046056,-961119.77831407,0.00018,2]
[404532268,1770255046067,-252604.57349727,0.00018,2]
[404532269,1770255046079,-150.0,0.00018,2]
[404532270,1770255046089,-150.0,0.00018,2]
[404532271,1770255046099,-150.0,0.00018,2]
[404532272,1770255046108,-150.0,0.00018,2]
[404532273,1770255046118,-150.0,0.00018,2]
[404532274,1770255046130,-618523.41248411,0.00018,2]
[404532278,1770255046490,-14902.46516432,0.00018,2]
[404532279,1770255046502,-1236.75000005,0.00018,2]
[404532280,1770255046635,-14464.13265414,0.00018,2]
[404532392,1770255538124,793.0830203,0.00021,30]
[404532586,1770256231374,-547.34,0.00011233,2]
[404532611,1770256237431,-1684.25,0.00011233,2]
[404532612,1770256237440,-160.35043238,0.00011233,2]
[404532613,1770256237449,-160.35043238,0.00011233,2]
[404532614,1770256237459,-300.0,0.00011727,2]
[404532615,1770256237468,-1200.0,0.00011727,2]
[404532616,1770256237477,-150.0,0.00011728,2]
[404532617,1770256237486,-330.60211691,0.00011728,2]
[404532618,1770256237502,-4015.7356028,0.00011728,2]
[404532619,1770256237511,-160.35043238,0.00011729,2]
[404532620,1770256237520,-500.0,0.00011729,2]
[404532621,1770256237530,-151.0,0.00011729,2]
[404532622,1770256237539,-151.0,0.00011729,2]
[404532623,1770256237547,-151.0,0.00011729,2]
[404532624,1770256237556,-151.0,0.00011729,2]
[404532625,1770256237565,-151.0,0.00011729,2]
[404532626,1770256237575,-151.0,0.00011729,2]
[404532627,1770256237584,-151.0,0.00011729,2]
[404532629,1770256237593,-151.0,0.00011729,2]
[404532631,1770256237602,-151.0,0.00011729,2]
[404532632,1770256237611,-151.0,0.00011729,2]
[404532633,1770256237620,-500.0,0.00011729,2]
[404532634,1770256237629,-200.0,0.00011729,2]
[404532635,1770256237639,-151.0,0.00011729,2]
[404532636,1770256237648,-500.0,0.00011729,2]
[404532637,1770256237657,-151.0,0.00011729,2]
[404532638,1770256237666,-500.0,0.00011729,2]
[404532639,1770256237676,-151.0,0.00011729,2]
[404532640,1770256237685,-500.0,0.00011729,2]
[404532641,1770256237694,-151.0,0.00011729,2]
[404532642,1770256237703,-500.0,0.00011729,2]
[404532643,1770256237712,-151.0,0.00011729,2]
[404532644,1770256237721,-151.0,0.00011729,2]
[404532646,1770256237730,-500.0,0.00011729,2]
[404532647,1770256237739,-151.0,0.00011729,2]
[404532648,1770256237748,-500.0,0.00011729,2]
[404532649,1770256237757,-151.0,0.00011729,2]
[404532650,1770256237765,-500.0,0.00011729,2]
[404532651,1770256237774,-151.0,0.00011729,2]
[404532652,1770256237783,-500.0,0.00011729,2]
[404532653,1770256237792,-153.18802609,0.00011729,2]
[404532654,1770256237801,-500.0,0.00011729,2]
[404532655,1770256237811,-500.0,0.00011729,2]
[404532656,1770256237820,-151.0,0.00011729,2]
[404532657,1770256237829,-151.0,0.00011729,2]
[404532658,1770256237838,-151.0,0.00011729,2]
[404532659,1770256237848,-151.0,0.00011729,2]
[404532660,1770256237859,-151.0,0.00011729,2]
[404532661,1770256237868,-151.0,0.00011729,2]
[404532662,1770256237877,-151.0,0.00011729,2]
[404532663,1770256237886,-500.0,0.00011729,2]
[404532664,1770256237895,-151.0,0.00011729,2]
[404532665,1770256237905,-151.0,0.00011729,2]
[404532666,1770256237914,-151.0,0.00011729,2]
[404532667,1770256237924,-151.0,0.00011729,2]
[404532668,1770256237934,-200.0,0.00011729,2]
[404532669,1770256237943,-502.25237109,0.00011729,2]
[404532670,1770256237953,-500.0,0.00011729,2]
[404532671,1770256237962,-500.0,0.00011729,2]
[404532672,1770256237971,-500.0,0.00011729,2]
[404532673,1770256237981,-500.0,0.00011729,2]
[404532674,1770256237990,-500.0,0.00011729,2]
[404532675,1770256238000,-500.0,0.00011729,2]
[404532676,1770256238010,-500.0,0.00011729,2]
[404532677,1770256238019,-500.0,0.00011729,2]
[404532678,1770256238028,-500.0,0.00011729,2]
[404532679,1770256238038,-500.0,0.00011729,2]
[404532680,1770256238047,-500.0,0.00011729,2]
[404532681,1770256238056,-14702.62619101,0.00011736,2]
[404532682,1770256238073,-443.21634454,0.00011736,2]
[404532684,1770256239378,-2055.51989803,0.00011736,2]
[404532686,1770256239642,-45266.92756642,0.00011736,2]
[404532687,1770256239652,-2173.31,0.0001176,2]
[404532688,1770256239661,-1600.0,0.00011856,2]
[404532689,1770256239671,-150.0,0.00011973,2]
[404532690,1770256239680,-500.0,0.00012003,2]
[404532691,1770256239690,-166.66,0.00012065,2]
[404532692,1770256239699,-5305.51,0.0001222,2]
[404532693,1770256239710,-184.17,0.00012266,2]
[404532694,1770256239719,-500.0,0.00012277,2]
[404532695,1770256239729,-200.0,0.00012277,2]
[404532696,1770256239739,-500.0,0.00012277,2]
[404532697,1770256239748,-200.0,0.00012277,2]
[404532698,1770256239757,-200.0,0.00012285,2]
[404532699,1770256239766,-257.0,0.00012291,2]
[404532700,1770256239775,-777.0,0.00012293,2]
[404532701,1770256239784,-187.89185227,0.00012334,2]
[404532702,1770256239793,-500.0,0.00012334,2]
[404532703,1770256239803,-150.0,0.00012334,2]
[404532705,1770256239812,-500.0,0.00012334,2]
[404532707,1770256239821,-500.0,0.00012334,2]
[404532709,1770256239831,-500.0,0.00012334,2]
[404532711,1770256239840,-150.0,0.00012334,2]
[404532714,1770256239849,-252.38748138,0.00012356,2]
[404532716,1770256239858,-193.49422272,0.00012356,2]
[404532718,1770256239867,-500.0,0.00012389,2]
[404532720,1770256239880,-150.0,0.00012389,2]
[404532722,1770256239889,-500.0,0.00012389,2]
[404532723,1770256239898,-500.0,0.00012389,2]
[404532724,1770256239907,-500.0,0.00012389,2]
[404532725,1770256239916,-500.0,0.00012444,2]
[404532726,1770256239925,-202.70297882,0.00012444,2]
[404532727,1770256239935,-500.0,0.00012444,2]
[404532728,1770256239944,-500.0,0.00012444,2]
[404532729,1770256239953,-500.0,0.00012444,2]
[404532730,1770256239963,-500.0,0.00012498,2]
[404532731,1770256239972,-500.0,0.00012498,2]
[404532733,1770256239981,-500.0,0.00012498,2]
[404532735,1770256239990,-500.0,0.00012498,2]
[404532737,1770256239999,-20801.40383803,0.00012515,2]
[404532739,1770256240009,-3161.695,0.00012515,2]
[404532741,1770256240018,-14245.93,0.00012539,2]
[404532743,1770256240027,-500.0,0.00012551,2]
[404532745,1770256240036,-500.0,0.00012553,2]
[404532747,1770256240045,-313.0498966,0.00012553,2]
[404532749,1770256240054,-500.0,0.00012553,2]
[404532751,1770256240064,-500.0,0.00012553,2]
[404532753,1770256240074,-166.66,0.00012563,2]
[404532755,1770256240084,-500.0,0.00012608,2]
[404532757,1770256240093,-500.0,0.00012608,2]
[404532759,1770256240102,-500.0,0.00012608,2]
[404532761,1770256240115,-10000.0,0.00012615,2]
[404532763,1770256240132,-456.05071944,0.00012663,2]
[404532765,1770256240141,-500.0,0.00012663,2]
[404532767,1770256240151,-500.0,0.00012663,2]
[404532769,1770256240160,-6997.5987,0.00012685,2]
[404532771,1770256240169,-253.05,0.00012708,2]
[404532773,1770256240179,-1016.01504209,0.00012714,3]
[404532775,1770256240189,-1016.01504209,0.00012714,3]
[404532777,1770256240198,-260.34861082,0.00012714,3]
[404532779,1770256240207,-500.0,0.00012718,2]
[404532781,1770256240220,-500.0,0.00012718,2]
[404532783,1770256240229,-500.0,0.00012769,2]
[404532785,1770256240238,-500.0,0.00012772,2]
[404532787,1770256240248,-500.0,0.00012772,2]
[404532789,1770256240257,-255.0,0.00012795,2]
[404532791,1770256240266,-502.96360645,0.00012825,2]
[404532793,1770256240275,-200.0,0.00012825,2]
[404532795,1770256240284,-500.0,0.00012825,2]
[404532797,1770256240293,-202.08380995,0.00012825,2]
[404532799,1770256240302,-500.0,0.00012827,2]
[404532801,1770256240310,-500.0,0.00012827,2]
[404532803,1770256240319,-420.0,0.00012877,2]
[404532805,1770256240328,-500.0,0.00012882,2]
[404532807,1770256240336,-500.0,0.00012882,2]
[404532809,1770256240345,-1680.0,0.000129,2]
[404532811,1770256240354,-501.78914153,0.00012909,2]
[404532813,1770256240363,-301.95500035,0.00012909,2]
[404532815,1770256240372,-452.05134841,0.00012937,2]
[404532817,1770256240381,-515.50348778,0.00012937,2]
[404532819,1770256240390,-500.0,0.00012981,2]
[404532821,1770256240399,-253.05,0.00012982,2]
[404532823,1770256240408,-166.66,0.00013061,2]
[404532825,1770256240417,-20801.40383802,0.00013113,2]
[404532827,1770256240426,-253.05,0.00013256,2]
[404532829,1770256240439,-2500.0,0.00013295,2]
[404532831,1770256240448,-4346.33771971,0.00013308,2]
[404532833,1770256240458,-1600.0,0.00013338,2]
[404532835,1770256240468,-233.22924952,0.00013373,2]
[404532837,1770256240477,-500.0,0.00013373,2]
[404532839,1770256240487,-1000.0,0.00013395,2]
[404532841,1770256240496,-33298.1738,0.00013395,2]
[404532843,1770256240506,-3240.0,0.00013425,2]
[404532845,1770256240515,-253.05,0.0001353,2]
[404532847,1770256240525,-361.31,0.00013541,2]
[404532849,1770256240534,-166.66,0.00013558,2]
[404532851,1770256240543,-4674.16851603,0.00013598,2]
[404532853,1770256240551,-500.0,0.00013698,2]
[404532855,1770256240560,-507.70655637,0.00013698,2]
[404532857,1770256240570,-500.0,0.00013698,2]
[404532859,1770256240579,-500.0,0.00013698,2]
[404532861,1770256240588,-500.0,0.00013698,2]
[404532863,1770256240597,-500.0,0.00013698,2]
[404532865,1770256240606,-500.0,0.00013698,2]
[404532867,1770256240615,-590.10761957,0.00013698,2]
[404532869,1770256240624,-500.0,0.00013698,2]
[404532872,1770256240633,-500.0,0.00013698,2]
[404532874,1770256240642,-288.02611632,0.00013698,2]
[404532876,1770256240651,-500.0,0.00013698,2]
[404532878,1770256240660,-500.0,0.00013698,2]
[404532880,1770256240670,-198.00308747,0.00013698,2]
[404532882,1770256240679,-500.0,0.00013698,2]
[404532884,1770256240688,-500.0,0.00013698,2]
[404532886,1770256240697,-500.0,0.00013698,2]
[404532888,1770256240707,-405.3888533,0.00013698,2]
[404532890,1770256240715,-500.0,0.00013698,2]
[404532892,1770256240724,-500.0,0.00013698,2]
[404532894,1770256240733,-447.07793737,0.00013698,2]
[404532896,1770256240742,-500.0,0.00013698,2]
[404532897,1770256240751,-500.0,0.00013698,2]
[404532899,1770256240760,-500.0,0.00013698,2]
[404532901,1770256240769,-500.0,0.00013698,2]
[404532904,1770256240779,-500.0,0.00013698,2]
[404532906,1770256240788,-500.0,0.00013698,2]
[404532908,1770256240797,-500.0,0.00013698,2]
[404532910,1770256240806,-418.4948437,0.00013698,2]
[404532912,1770256240815,-500.0,0.00013698,2]
[404532915,1770256240833,-500.0,0.00013698,2]
[404532917,1770256240843,-500.0,0.00013698,2]
[404532919,1770256240852,-500.0,0.00013698,2]
[404532921,1770256240861,-519.87500599,0.00013698,2]
[404532923,1770256240869,-500.0,0.00013698,2]
[404532924,1770256240878,-500.0,0.00013698,2]
[404532925,1770256240887,-500.0,0.00013698,2]
[404532926,1770256240896,-179.5772256,0.00013698,2]
[404532927,1770256240905,-500.0,0.00013698,2]
[404532928,1770256240914,-500.0,0.00013698,2]
[404532929,1770256240923,-500.0,0.00013698,2]
[404532930,1770256240933,-500.0,0.00013698,2]
[404532931,1770256240942,-500.0,0.00013698,2]
[404532932,1770256240952,-500.0,0.00013698,2]
[404532933,1770256240962,-500.0,0.00013698,2]
[404532934,1770256240971,-500.0,0.00013698,2]
[404532935,1770256240981,-500.0,0.00013698,2]
[404532936,1770256240990,-500.0,0.00013698,2]
[404532937,1770256241000,-500.0,0.00013698,2]
[404532938,1770256241009,-500.0,0.00013698,2]
[404532939,1770256241020,-500.0,0.00013698,2]
[404532940,1770256241029,-263.06080221,0.00013698,2]
[404532941,1770256241038,-500.0,0.00013698,2]
[404532942,1770256241048,-500.0,0.00013698,2]
[404532943,1770256241058,-500.0,0.00013698,2]
[404532944,1770256241067,-500.0,0.00013698,2]
[404532945,1770256241077,-500.0,0.00013698,2]
[404532946,1770256241086,-500.0,0.00013698,2]
[404532947,1770256241097,-500.0,0.00013698,2]
[404532948,1770256241106,-500.0,0.00013698,2]
[404532949,1770256241116,-363.20210057,0.00013698,2]
[404532950,1770256241125,-500.0,0.00013698,2]
[404532951,1770256241134,-500.0,0.00013698,2]
[404532952,1770256241146,-500.0,0.00013698,2]
[404532953,1770256241155,-500.0,0.00013698,2]
[404532954,1770256241165,-500.0,0.00013698,2]
[404532955,1770256241185,-500.0,0.00013698,2]
[404532956,1770256241196,-500.0,0.00013698,2]
[404532957,1770256241206,-500.0,0.00013698,2]
[404532958,1770256241215,-500.0,0.00013698,2]
[404532959,1770256241225,-500.0,0.00013698,2]
[404532960,1770256241234,-500.0,0.00013698,2]
[404532961,1770256241243,-500.0,0.00013698,2]
[404532962,1770256241252,-500.0,0.00013698,2]
[404532963,1770256241262,-500.0,0.00013698,2]
[404532964,1770256241271,-500.0,0.00013698,2]
[404532965,1770256241282,-500.0,0.00013698,2]
[404532966,1770256241292,-500.0,0.00013698,2]
[404532967,1770256241302,-200.0,0.00013699,2]
[404532968,1770256241317,-499.99,0.00013699,2]
[404532969,1770256241327,-4999.99,0.00013699,2]
[404532970,1770256241336,-26701.08,0.00013699,2]
[404532971,1770256241549,-9999.99,0.00013699,2]
[404532972,1770256241558,-3186.13,0.00013699,2]
[404532973,1770256241567,-9999.99,0.00013699,2]
[404532974,1770256241576,-299.99,0.00013699,2]
[404532975,1770256241585,-14611.7,0.00013699,2]
[404532976,1770256241594,-3847.96,0.00013699,2]
[404532977,1770256241603,-1610.11,0.00013699,2]
[404532978,1770256241612,-150.99,0.00013699,2]
[404532979,1770256241621,-9999.99,0.00013699,2]
[404532980,1770256241630,-150.99,0.00013699,2]
[404532981,1770256241640,-5907.08,0.00013699,2]
[404532982,1770256241649,-999.99,0.00013699,2]
[404532983,1770256241659,-9999.99,0.00013699,2]
[404532984,1770256241667,-9999.99,0.00013699,2]
[404532986,1770256241677,-2980.38,0.00013699,2]
[404532988,1770256241687,-20801.40383802,0.00013712,2]
[404532990,1770256241695,-253.05,0.00013804,2]
[404532992,1770256241704,-500.0,0.00013921,2]
[404532994,1770256241715,-869.32,0.00013922,2]
[404532996,1770256241724,-433.0,0.00013956,2]
[404532998,1770256241733,-166.66,0.00014056,2]
[404533000,1770256241742,-253.05,0.00014078,2]
[404533002,1770256241752,-449.0,0.0001414,2]
[404533005,1770256241763,-2351.0,0.0001419,2]
[404533007,1770256241772,-869.32,0.00014196,2]
[404533009,1770256241782,-4674.16851596,0.00014213,2]
[404533011,1770256241791,-20801.40383802,0.0001431,2]
[404533013,1770256241800,-253.05,0.00014352,2]
[404533015,1770256241808,-503.06196674,0.00014469,2]
[404533017,1770256241817,-869.32,0.0001447,2]
[404533019,1770256241826,-500.0,0.00014504,2]
[404533021,1770256241835,-19045.94,0.00014504,2]
[404533023,1770256241844,-29999.99,0.00014504,2]
[404533025,1770256241853,-9999.99,0.00014504,2]
[404533027,1770256241862,-27685.19,0.00014504,2]
[404533028,1770256241871,-162.58676395,0.000146,2]
[404533029,1770256241882,-225.44654066,0.000146,2]
[404533030,1770256241891,-500.0,0.000146,2]
[404533031,1770256241902,-175.98055597,0.000146,2]
[404533032,1770256241910,-170.4329876,0.000146,2]
[404533033,1770256241919,-225.55865002,0.000146,2]
[404533034,1770256241928,-164.77044287,0.000146,2]
[404533035,1770256241936,-569.26300469,0.000146,2]
[404533036,1770256241945,-500.0,0.000146,2]
[404533037,1770256241955,-500.0,0.000146,2]
[404533038,1770256241965,-500.0,0.000146,2]
[404533039,1770256241976,-500.0,0.000146,2]
[404533040,1770256241984,-500.0,0.000146,2]
[404533041,1770256241993,-500.0,0.000146,2]
[404533042,1770256242002,-164.20339423,0.000146,2]
[404533043,1770256242012,-168.19786188,0.000146,2]
[404533044,1770256242021,-500.0,0.000146,2]
[404533045,1770256242030,-501.01298816,0.000146,2]
[404533046,1770256242039,-500.0,0.000146,2]
[404533047,1770256242047,-500.0,0.000146,2]
[404533048,1770256242056,-541.72795045,0.000146,2]
[404533049,1770256242066,-500.0,0.000146,2]
[404533050,1770256242075,-500.0,0.000146,2]
[404533051,1770256242085,-500.0,0.000146,2]
[404533052,1770256242095,-500.0,0.000146,2]
[404533053,1770256242105,-500.14897377,0.000146,2]
[404533054,1770256242115,-163.14282575,0.000146,2]
[404533055,1770256242124,-500.0,0.000146,2]
[404533056,1770256242134,-500.0,0.000146,2]
[404533057,1770256242143,-500.0,0.000146,2]
[404533058,1770256242152,-500.0,0.000146,2]
[404533059,1770256242161,-500.0,0.000146,2]
[404533060,1770256242170,-500.0,0.000146,2]
[404533061,1770256242179,-500.0,0.000146,2]
[404533062,1770256242188,-163.97271945,0.000146,2]
[404533063,1770256242197,-500.0,0.000146,2]
[404533064,1770256242207,-500.0,0.000146,2]
[404533066,1770256242217,-500.0,0.000146,2]
[404533068,1770256242226,-500.0,0.000146,2]
[404533069,1770256242235,-500.0,0.000146,2]
[404533070,1770256242244,-500.0,0.000146,2]
[404533071,1770256242254,-500.0,0.000146,2]
[404533072,1770256242262,-500.0,0.000146,2]
[404533073,1770256242272,-500.0,0.000146,2]
[404533074,1770256242281,-500.0,0.000146,2]
[404533075,1770256242290,-239.74479814,0.000146,2]
[404533076,1770256242301,-166.3498954,0.000146,2]
[404533077,1770256242310,-500.0,0.000146,2]
[404533078,1770256242320,-500.0,0.000146,2]
[404533079,1770256242329,-500.0,0.000146,2]
[404533080,1770256242340,-500.0,0.000146,2]
[404533081,1770256242349,-253.05,0.00014625,2]
[404533082,1770256242357,-869.32,0.00014744,2]
[404533083,1770256242368,-1600.0,0.0001482,2]
[404533084,1770256242378,-4674.16851596,0.00014827,2]
[404533085,1770256242387,-4346.33771971,0.00014887,2]
[404533086,1770256242397,-253.05,0.00014899,2]
[404533087,1770256242406,-200.0,0.000149,5]
[404533088,1770256242416,-174349.0,0.000149,2]
[404533089,1770256242429,-20801.40383802,0.00014908,2]
[404533090,1770256242438,-250.0,0.00015,2]
[404533091,1770256242448,-152.62,0.00015,2]
[404533092,1770256242458,-988.87,0.00015018,2]
[404533093,1770256242469,-3958.56221023,0.00015126,2]
[404533094,1770256242479,-10446.70830336,0.00015126,2]
[404533095,1770256242489,-18429.23173503,0.00015126,2]
[404533096,1770256242499,-500.0,0.00015147,2]
[404533097,1770256242508,-501.70650637,0.00015148,2]
[404533098,1770256242518,-1000.4722703,0.00015148,2]
[404533099,1770256242527,-1000.69918339,0.00015148,2]
[404533100,1770256242537,-543.93050813,0.00015148,2]
[404533101,1770256242546,-1000.74620686,0.00015148,2]
[404533102,1770256242555,-1000.60142498,0.00015148,2]
[404533103,1770256242564,-1005.82893867,0.00015148,2]
[404533104,1770256242573,-1000.31944951,0.00015148,2]
[404533105,1770256242583,-1001.15447601,0.00015148,2]
[404533106,1770256242592,-1000.0,0.00015148,2]
[404533107,1770256242601,-1000.66593252,0.00015148,2]
[404533108,1770256242610,-1001.26387074,0.00015148,2]
[404533109,1770256242619,-1002.57509796,0.00015148,2]
[404533110,1770256242628,-1001.47083353,0.00015148,2]
[404533111,1770256242638,-1001.56217905,0.00015148,2]
[404533112,1770256242647,-491.10968237,0.00015148,2]
[404533113,1770256242656,-500.26105796,0.00015148,2]
[404533114,1770256242665,-1000.61962851,0.00015148,2]
[404533115,1770256242675,-1000.52759668,0.00015148,2]
[404533116,1770256242684,-1000.68524113,0.00015148,2]
[404533117,1770256242693,-1000.48740819,0.00015148,2]
[404533118,1770256242703,-1000.0,0.00015148,2]
[404533119,1770256242714,-1000.59417593,0.00015148,2]
[404533120,1770256242722,-448.19468019,0.00015148,2]
[404533121,1770256242733,-460.40433441,0.00015148,2]
[404533122,1770256242742,-1000.0,0.00015148,2]
[404533123,1770256242752,-1000.0,0.00015148,2]
[404533124,1770256242761,-1002.44563879,0.00015148,2]
[404533125,1770256242771,-1000.34086529,0.00015148,2]
[404533126,1770256242780,-511.26605908,0.00015148,2]
[404533127,1770256242790,-657.18098015,0.00015148,2]
[404533128,1770256242804,-245.20286749,0.00015148,2]
[404533129,1770256242814,-1001.70914425,0.00015148,2]
[404533130,1770256242823,-259.61692105,0.00015148,2]
[404533131,1770256242833,-1000.51893008,0.00015148,2]
[404533132,1770256242842,-1740.741829,0.00015148,2]
[404533133,1770256242851,-1273.69247597,0.00015148,2]
[404533134,1770256242861,-925.12533896,0.00015148,2]
[404533135,1770256242870,-220.37661827,0.00015148,2]
[404533136,1770256242879,-253.05,0.00015173,2]
[404533137,1770256242889,-5530.0,0.000152,3]
[404533138,1770256242898,-736.0,0.00015235,2]
[404533139,1770256242908,-433.48116845,0.00015309,2]
[404533140,1770256242917,-773.71,0.00015314,2]
[404533141,1770256242926,-4674.16851596,0.00015442,2]
[404533142,1770256242936,-253.05,0.00015447,2]
[404533143,1770256242946,-396.55,0.00015496,2]
[404533144,1770256242955,-5530.0,0.000155,5]
[404533145,1770256242966,-20801.40383802,0.00015507,2]
[404533146,1770256242976,-775.02,0.00015588,2]
[404533147,1770256242986,-500.0,0.00015599,2]
[404533148,1770256242996,-3292.0,0.00015609,2]
[404533149,1770256243006,-652.61332377,0.00015696,2]
[404533151,1770256243015,-1500.0,0.00015696,2]
[404533152,1770256243025,-1500.0,0.00015696,2]
[404533153,1770256243035,-1500.0,0.00015696,2]
[404533154,1770256243045,-253.05,0.00015721,2]
[404533155,1770256243055,-5627.0729494,0.000158,2]
[404533156,1770256243064,-400.0,0.000159,5]
[404533157,1770256243074,-5033.41855201,0.0001596,2]
[404533158,1770256243083,-253.05,0.00015995,2]
[404533159,1770256243093,-500.0,0.00016,2]
[404533160,1770256243103,-4674.16851596,0.00016056,2]
[404533161,1770256243113,-167.97,0.00016058,2]
[404533162,1770256243122,-1411.0,0.00016066,2]
[404533163,1770256243131,-3491.028,0.00016066,2]
[404533164,1770256243141,-616.445,0.00016066,2]
[404533165,1770256243151,-1337.127,0.00016066,2]
[404533166,1770256243161,-251.149,0.00016066,2]
[404533167,1770256243171,-1276.706,0.00016066,2]
[404533168,1770256243181,-568.607,0.00016066,2]
[404533169,1770256243190,-6581.0,0.00016066,2]
[404533170,1770256243200,-3254.0,0.00016066,2]
[404533171,1770256243211,-20801.40383802,0.00016105,2]
[404533172,1770256243220,-27569.02849565,0.00016126,2]
[404533173,1770256243230,-1504.76214666,0.00016244,2]
[404533174,1770256243239,-518.82782863,0.00016244,2]
[404533175,1770256243249,-2000.0,0.00016244,2]
[404533176,1770256243258,-253.05,0.00016269,2]
[404533177,1770256243268,-1600.0,0.00016303,2]
[404533178,1770256243277,-166.66,0.00016307,2]
[404533179,1770256243288,-190.265362,0.00016352,7]
[404533180,1770256243298,-800.0,0.00016438,2]
[404533181,1770256243307,-481.51337028,0.00016451,2]
[404533182,1770256243317,-151.0,0.00016463,2]
[404533183,1770256243327,-4346.33771971,0.00016467,2]
[404533184,1770256243336,-253.05,0.00016543,2]
[404533185,1770256243346,-361.31,0.00016548,2]
[404533186,1770256243356,-184.0,0.00016618,2]